bitfinex/quotes_BTCUSD_20220211
["timestamp","ask_amount","ask_price","bid_price","bid_amount"]
[1644619361598,0.49860128,42349.0,42347.0,0.00237728]
[1644619361799,0.330992,42348.0,42347.0,0.00127728]
[1644619362399,0.22667722,42349.0,42347.0,0.00127728]
[1644619366349,0.27667722,42349.0,42347.0,0.00127728]
[1644619366549,0.11813564,42348.0,42346.0,0.05067728]
[1644619366801,0.17720364,42348.0,42346.0,0.05110177]
[1644619367805,0.17720364,42348.0,42346.0,0.05067728]
[1644619369105,0.330992,42347.0,42346.0,0.05067728]
[1644619370104,0.380992,42347.0,42346.0,0.05067728]
[1644619372146,0.380992,42347.0,42346.0,0.06067728]
[1644619372346,0.380992,42347.0,42346.0,0.00664911]
[1644619373147,0.330976,42347.0,42346.0,0.00664911]
[1644619374405,0.315976,42347.0,42346.0,0.00664911]
[1644619375206,0.365976,42347.0,42346.0,0.00664911]
[1644619377309,0.60597601,42347.0,42346.0,0.00664911]
[1644619377708,0.29000001,42347.0,42346.0,0.00664911]
[1644619377909,0.35814001,42347.0,42346.0,0.00664911]
[1644619378151,0.63004501,42347.0,42346.0,0.00664911]
[1644619379348,0.68004501,42347.0,42346.0,0.00664911]
[1644619379749,0.34906801,42347.0,42346.0,0.00664911]
[1644619380351,0.63004501,42347.0,42346.0,0.00664911]
[1644619381552,0.68004501,42347.0,42346.0,0.00664911]
[1644619382103,0.68004501,42347.0,42346.0,0.00682514]
[1644619382404,0.29906801,42347.0,42346.0,0.00682514]
[1644619383407,0.34906801,42347.0,42346.0,0.00682514]
[1644619383604,0.68004501,42347.0,42346.0,0.00682514]
[1644619384206,0.34906801,42347.0,42346.0,0.00682514]
[1644619384807,0.68004501,42347.0,42346.0,0.00682514]
[1644619385008,0.34906801,42347.0,42346.0,0.00682514]
[1644619386350,0.73004501,42347.0,42346.0,0.00682514]
[1644619386553,0.68004501,42347.0,42346.0,0.00682514]
[1644619386753,0.68004501,42347.0,42346.0,0.00017603]
[1644619386951,0.68004501,42347.0,42345.0,0.00127603]
[1644619387250,0.34906801,42347.0,42345.0,0.00127603]
[1644619387450,0.330977,42346.0,42345.0,0.00127603]
[1644619387652,0.68004501,42347.0,42345.0,0.00127603]
[1644619387950,0.34906801,42347.0,42345.0,0.00127603]
[1644619388752,0.68004501,42347.0,42345.0,0.00127603]
[1644619388951,0.34906801,42347.0,42345.0,0.00127603]
[1644619389803,0.68004501,42347.0,42345.0,0.00127603]
[1644619390002,0.34906801,42347.0,42345.0,0.00127603]
[1644619390203,0.330977,42346.0,42345.0,0.00127603]
[1644619390405,0.68004501,42347.0,42345.0,0.00127603]
[1644619390905,0.34906801,42347.0,42345.0,0.00127603]
[1644619391104,0.68004501,42347.0,42345.0,0.00127603]
[1644619391504,0.34906801,42347.0,42345.0,0.00127603]
[1644619392105,0.68004501,42347.0,42345.0,0.00127603]
[1644619392404,0.34906801,42347.0,42345.0,0.00127603]
[1644619392606,0.68004501,42347.0,42345.0,0.00127603]
[1644619393259,0.34906801,42347.0,42345.0,0.00127603]
[1644619393461,0.29000001,42347.0,42345.0,0.00127603]
[1644619393661,0.62097701,42347.0,42345.0,0.00127603]
[1644619394360,0.29000001,42347.0,42345.0,0.00127603]
[1644619394559,0.62097701,42347.0,42345.0,0.00127603]
[1644619394761,0.29000001,42347.0,42345.0,0.00127603]
[1644619394962,0.62097701,42347.0,42345.0,0.00127603]
[1644619395160,0.29000001,42347.0,42345.0,0.00127603]
[1644619395361,0.62097701,42347.0,42345.0,0.00127603]
[1644619395560,0.29000001,42347.0,42345.0,0.00127603]
[1644619395759,0.62097701,42347.0,42345.0,0.00127603]
[1644619397405,0.29000001,42347.0,42345.0,0.00127603]
[1644619398007,0.62097701,42347.0,42345.0,0.00127603]
[1644619399207,0.29000001,42347.0,42345.0,0.00127603]
[1644619399406,0.29000001,42347.0,42345.0,0.00117361]
[1644619399407,0.62097701,42347.0,42345.0,0.00117361]
[1644619399605,0.29000001,42347.0,42345.0,0.00117361]
[1644619399806,0.4509626,42347.0,42345.0,0.00117361]
[1644619400007,0.29000001,42347.0,42345.0,0.00117361]
[1644619400210,0.62097701,42347.0,42345.0,0.00117361]
[1644619400651,0.29000001,42347.0,42345.0,0.00117361]
[1644619400850,0.62097701,42347.0,42345.0,0.00099758]
[1644619401051,0.29000001,42347.0,42345.0,0.00099758]
[1644619403051,0.29000001,42347.0,42345.0,0.00071791]
[1644619403251,0.10793927,42349.0,42345.0,0.00071791]
[1644619403752,0.059062,42348.0,42345.0,0.00071791]
[1644619403954,0.059062,42348.0,42345.0,0.00115485]
[1644619405033,0.17720015,42348.0,42345.0,0.00071791]
[1644619405233,0.22720015,42348.0,42345.0,0.00071791]
[1644619405633,0.05,42347.0,42345.0,0.00071791]
[1644619408047,0.04952899,42347.0,42345.0,0.00071791]
[1644619408250,0.38050599,42347.0,42345.0,0.00071791]
[1644619408651,0.330977,42345.0,42342.0,0.17712719]
[1644619408848,0.118134,42345.0,42344.0,0.00014333]
[1644619409251,0.168134,42345.0,42344.0,0.00014333]
[1644619409448,0.168134,42345.0,42341.0,0.00124333]
[1644619409848,0.390043,42344.0,42341.0,0.00124333]
[1644619410047,0.330977,42342.0,42341.0,0.00124333]
[1644619410251,0.380977,42342.0,42341.0,0.00124333]
[1644619410447,0.05,42342.0,42341.0,0.00124333]
[1644619410647,0.17720533,42344.0,42341.0,0.00124333]
[1644619411451,0.05906907,42342.0,42341.0,0.00124333]
[1644619412500,0.05906907,42342.0,42341.0,0.33222033]
[1644619412702,0.109067,42343.0,42341.0,0.01623333]
[1644619412899,0.109067,42343.0,42342.0,0.05]
[1644619413099,0.05,42343.0,42342.0,0.05]
[1644619413301,0.05,42343.0,42342.0,0.30140013]
[1644619413500,0.059066,42344.0,42342.0,0.30140013]
[1644619413701,0.059066,42344.0,42342.0,0.63237713]
[1644619413902,0.059066,42344.0,42342.0,0.25140013]
[1644619414100,0.059066,42344.0,42342.0,0.26637213]
[1644619414301,0.059066,42344.0,42342.0,0.58237713]
[1644619414505,0.059066,42344.0,42342.0,0.25140013]
[1644619415101,0.177208,42352.0,42343.0,0.364979]
[1644619415304,0.177208,42352.0,42349.0,0.330921]
[1644619415558,0.5,42358.0,42352.0,0.014967]
[1644619415559,0.66095141,42358.0,42352.0,0.014967]
[1644619415752,0.5,42358.0,42352.0,0.014967]
[1644619415952,0.059047,42353.0,42352.0,0.014967]
[1644619417252,0.059047,42353.0,42352.0,0.064967]
[1644619417455,0.00043626,42359.0,42352.0,0.064967]
[1644619417654,0.00043626,42359.0,42357.0,0.389883]
[1644619417854,0.00043626,42359.0,42358.0,0.073993]
[1644619418257,0.01227378,42363.0,42358.0,0.073993]
[1644619418454,0.01227378,42363.0,42359.0,0.58266698]
[1644619418653,0.00029358,42361.0,42360.0,0.014956]
[1644619419054,0.00029358,42361.0,42360.0,0.073988]
[1644619419301,0.00029358,42361.0,42360.0,0.123988]
[1644619419502,0.01227378,42363.0,42360.0,0.123988]
[1644619419706,0.01227378,42363.0,42361.0,0.330817]
[1644619419902,0.00029358,42363.0,42362.0,0.29608922]
[1644619420202,0.01256736,42363.0,42362.0,0.62706622]
[1644619420606,0.01256736,42363.0,42362.0,0.72706622]
[1644619420903,0.00029358,42365.0,42362.0,0.44608922]
[1644619421106,0.00029358,42365.0,42364.0,0.380961]
[1644619421303,0.00029358,42365.0,42364.0,0.15]
[1644619421506,0.00029358,42365.0,42363.0,0.1811]
[1644619421705,0.00029358,42365.0,42360.0,0.18771465]
[1644619421905,0.330977,42364.0,42360.0,0.18771465]
[1644619422105,0.0001,42367.0,42357.0,0.059041]
[1644619422106,0.059041,42360.0,42357.0,0.059041]
[1644619422307,0.00043673,42366.0,42357.0,0.059041]
[1644619422707,0.00043673,42366.0,42357.0,0.15418568]
[1644619422907,0.00043673,42366.0,42357.0,0.04514468]
[1644619423163,0.168177,42367.0,42357.0,0.04514468]
[1644619423565,0.00043674,42364.0,42360.0,0.37128284]
[1644619423767,0.00043674,42364.0,42363.0,0.10092326]
[1644619424165,0.00043674,42364.0,42363.0,0.05092326]
[1644619424367,0.0001,42373.0,42365.0,0.330927]
[1644619424565,0.00043673,42366.0,42365.0,0.43017353]
[1644619424765,0.00043673,42366.0,42365.0,0.52114353]
[1644619425166,0.00043673,42366.0,42365.0,0.330927]
[1644619425566,0.05903,42368.0,42365.0,0.330927]
[1644619425765,0.05903,42368.0,42362.0,0.118044]
[1644619425766,0.05946672,42368.0,42362.0,0.118044]
[1644619425965,0.0001,42367.0,42362.0,0.118044]
[1644619426367,0.05946672,42368.0,42362.0,0.118044]
[1644619426797,0.05903,42368.0,42363.0,0.330977]
[1644619428601,0.05403,42368.0,42364.0,0.05903]
[1644619428801,0.05403,42368.0,42365.0,0.014775]
[1644619430652,0.05403,42368.0,42359.0,0.268065]
[1644619430653,0.05403,42368.0,42359.0,0.168065]
[1644619430853,0.05403,42368.0,42360.0,0.330977]
[1644619431050,0.05403,42368.0,42361.0,0.330977]
[1644619431249,0.05403,42368.0,42359.0,0.168065]
[1644619431453,0.05403,42368.0,42362.0,0.014801]
[1644619431653,0.05403,42368.0,42360.0,0.330977]
[1644619431851,0.00042662,42366.0,42360.0,0.1]
[1644619432051,0.05946462,42366.0,42361.0,0.330977]
[1644619432455,0.05946462,42366.0,42363.0,0.014794]
[1644619432757,0.059038,42366.0,42363.0,0.014794]
[1644619433155,0.059038,42366.0,42361.0,0.1]
[1644619433456,0.00042661,42367.0,42366.0,0.11807599]
[1644619434058,0.059039,42368.0,42366.0,0.11807599]
[1644619434301,0.330977,42367.0,42366.0,0.11807599]
[1644619434502,0.05,42367.0,42366.0,0.11807599]
[1644619434704,0.330977,42367.0,42366.0,0.11807599]
[1644619434903,0.499052,42367.0,42366.0,0.11807599]
[1644619435103,0.78367004,42367.0,42366.0,0.11807599]
[1644619435904,0.93367004,42367.0,42366.0,0.11807599]
[1644619436505,1.15654621,42367.0,42366.0,0.11807599]
[1644619436703,1.15654621,42367.0,42351.0,0.18771465]
[1644619436704,0.25,42366.0,42351.0,0.18771465]
[1644619436905,0.330977,42352.0,42351.0,0.18771465]
[1644619437105,0.380977,42352.0,42349.0,0.18771465]
[1644619437306,0.05,42352.0,42349.0,0.18771465]
[1644619437505,0.109058,42353.0,42344.0,0.25200975]
[1644619437708,0.118119,42352.0,42344.0,0.08390475]
[1644619438061,0.118119,42352.0,42344.0,0.05]
[1644619438251,0.118119,42352.0,42343.0,0.03882576]
[1644619438452,0.05906,42351.0,42344.0,0.29062225]
[1644619438650,0.05906,42351.0,42342.0,0.72973476]
[1644619438651,0.330977,42349.0,42342.0,0.54202011]
[1644619438851,0.330977,42349.0,42343.0,0.18771465]
[1644619438852,0.118131,42349.0,42343.0,0.18771465]
[1644619439051,0.168131,42349.0,42342.0,0.1883285]
[1644619439252,0.168131,42349.0,42342.0,0.00043802]
[1644619439653,0.059066,42348.0,42342.0,0.00061385]
[1644619439853,0.059066,42348.0,42342.0,0.05967585]
[1644619440052,0.059066,42348.0,42342.0,0.00017583]
[1644619440258,0.059066,42348.0,42342.0,0.04144784]
[1644619440454,0.059066,42348.0,42342.0,0.00061383]
[1644619440854,0.059066,42348.0,42342.0,0.04269494]
[1644619441254,0.059066,42348.0,42342.0,0.05923783]
[1644619441457,0.059066,42348.0,42342.0,0.00059946]
[1644619441657,0.059066,42347.0,42342.0,0.00059946]
[1644619441909,0.118131,42347.0,42342.0,0.00059946]
[1644619442110,0.059065,42347.0,42342.0,0.00059946]
[1644619442311,0.109065,42347.0,42342.0,0.00059946]
[1644619442512,0.109065,42347.0,42342.0,0.05923783]
[1644619442710,0.05,42348.0,42342.0,0.05966146]
[1644619442916,0.118112,42352.0,42342.0,0.05966146]
[1644619443111,0.168112,42352.0,42343.0,0.05905372]
[1644619443910,0.059054,42349.0,42345.0,0.059055]
[1644619448058,0.059054,42349.0,42345.0,0.01571656]
[1644619449403,0.059054,42349.0,42345.0,0.01271656]
[1644619450805,0.059054,42349.0,42345.0,0.01225752]
[1644619451607,0.059054,42349.0,42343.0,0.05923583]
[1644619452106,0.109054,42349.0,42343.0,0.05923583]
[1644619452305,0.059061,42348.0,42343.0,0.05906]
[1644619452507,0.059061,42348.0,42343.0,0.05923583]
[1644619453356,0.059061,42348.0,42343.0,0.05906]
[1644619453559,0.059061,42348.0,42343.0,0.05923583]
[1644619454556,0.059061,42348.0,42343.0,0.05906]
[1644619454756,0.059061,42348.0,42343.0,0.05923583]
[1644619455859,0.059061,42348.0,42343.0,0.05906]
[1644619456061,0.059061,42347.0,42343.0,0.05923583]
[1644619456257,0.168122,42347.0,42343.0,0.05923583]
[1644619457001,0.168122,42347.0,42343.0,0.05906]
[1644619457201,0.168122,42347.0,42343.0,0.05923583]
[1644619458405,0.168122,42347.0,42343.0,0.05906]
[1644619458607,0.168122,42347.0,42343.0,0.05923583]
[1644619458806,0.059061,42346.0,42343.0,0.05923583]
[1644619459005,0.059062,42345.0,42343.0,0.00017583]
[1644619459205,0.059062,42345.0,42342.0,0.00017583]
[1644619459405,0.059062,42345.0,42342.0,0.00039374]
[1644619459607,0.059062,42345.0,42342.0,0.00056957]
[1644619460208,0.059062,42345.0,42342.0,0.05963057]
[1644619460411,0.059062,42345.0,42342.0,0.05923683]
[1644619460655,0.059062,42345.0,42343.0,0.035887]
[1644619460856,0.059062,42345.0,42344.0,0.330977]
[1644619461055,0.059062,42345.0,42344.0,0.13522523]
[1644619461258,0.059055,42347.0,42345.0,0.059055]
[1644619461453,0.168108,42349.0,42346.0,0.330977]
[1644619461654,0.168108,42349.0,42344.0,0.18522523]
[1644619461853,0.168108,42349.0,42345.0,0.330977]
[1644619462054,0.168108,42349.0,42345.0,0.05905215]
[1644619462254,0.059053,42348.0,42345.0,0.1]
[1644619462454,0.059053,42348.0,42346.0,0.059056]
[1644619463154,0.058293,42348.0,42346.0,0.059056]
[1644619463553,0.059056,42357.0,42354.0,0.19186349]
[1644619464158,0.236234,42356.0,42354.0,0.19186349]
[1644619465008,0.05905513,42355.0,42354.0,0.19186349]
[1644619471562,0.05840513,42355.0,42354.0,0.19186349]
[1644619474111,0.236234,42356.0,42354.0,0.19186349]
[1644619475408,0.05905281,42355.0,42354.0,0.19186349]
[1644619475660,0.236234,42356.0,42354.0,0.19186349]
[1644619475861,0.236234,42356.0,42355.0,0.330977]
[1644619476062,0.236234,42356.0,42354.0,0.19186349]
[1644619476859,0.05905275,42355.0,42354.0,0.19186349]
[1644619478865,0.236234,42356.0,42354.0,0.52284049]
[1644619479066,0.236234,42356.0,42354.0,0.19186349]
[1644619480324,0.29528703,42356.0,42354.0,0.19186349]
[1644619480722,0.29528703,42356.0,42355.0,0.330977]
[1644619481524,0.29484263,42356.0,42355.0,0.330977]
[1644619481928,0.2357896,42356.0,42355.0,0.330977]
[1644619482227,0.2357896,42356.0,42355.0,0.014855]
[1644619482423,0.2357896,42356.0,42354.0,0.19186349]
[1644619483263,0.29484254,42356.0,42354.0,0.19186349]
[1644619483764,0.2357896,42356.0,42354.0,0.19186349]
[1644619484363,0.29484299,42356.0,42354.0,0.19186349]
[1644619484565,0.2357896,42356.0,42354.0,0.19186349]
[1644619484966,0.2357896,42356.0,42355.0,0.330977]
[1644619485467,0.2357896,42356.0,42354.0,0.19186349]
[1644619486366,0.29484302,42356.0,42354.0,0.19186349]
[1644619486809,0.2357896,42356.0,42355.0,0.014856]
[1644619487007,0.2357896,42356.0,42354.0,0.19186349]
[1644619487408,0.29484348,42356.0,42354.0,0.19186349]
[1644619491559,0.2949105,42356.0,42354.0,0.19186349]
[1644619493565,0.059057,42357.0,42356.0,0.24144202]
[1644619496006,0.059057,42357.0,42356.0,0.24098887]
[1644619498559,0.390034,42357.0,42356.0,0.24098887]
[1644619498760,0.059057,42357.0,42356.0,0.24098887]
[1644619500359,0.059057,42357.0,42356.0,0.23598887]
[1644619501661,0.059157,42357.0,42356.0,0.23598887]
[1644619508756,0.390134,42357.0,42354.0,0.19186349]
[1644619508957,0.059157,42357.0,42354.0,0.19186349]
[1644619509155,0.36583032,42358.0,42354.0,0.19186349]
[1644619509410,0.2478403,42356.0,42354.0,0.19186349]
[1644619510011,0.3068963,42356.0,42354.0,0.19186349]
[1644619512314,0.330977,42355.0,42354.0,0.19186349]
[1644619514159,0.05,42355.0,42354.0,0.19186349]
[1644619514359,0.36700917,42356.0,42354.0,0.19186349]
[1644619514558,0.1887843,42355.0,42354.0,0.19186349]
[1644619515763,0.5197613,42355.0,42354.0,0.19186349]
[1644619515965,0.1887843,42355.0,42354.0,0.19186349]
[1644619516363,0.38767125,42355.0,42354.0,0.19186349]
[1644619518810,0.1887843,42355.0,42354.0,0.19186349]
[1644619521266,0.5197613,42355.0,42354.0,0.19186349]
[1644619521662,0.1887843,42355.0,42354.0,0.19186349]
[1644619523062,0.5197613,42355.0,42354.0,0.19186349]
[1644619523263,0.1887843,42355.0,42354.0,0.19186349]
[1644619523664,0.43734662,42355.0,42354.0,0.19186349]
[1644619524063,0.7171945,42355.0,42354.0,0.19186349]
[1644619524306,0.1887843,42355.0,42354.0,0.18290253]
[1644619524907,0.5197613,42355.0,42354.0,0.18290253]
[1644619525113,0.22716727,42356.0,42355.0,0.34757881]
[1644619525408,0.55824427,42356.0,42355.0,0.34757881]
[1644619525609,0.49918827,42356.0,42355.0,0.34757881]
[1644619527214,0.69794126,42356.0,42355.0,0.34757881]
[1644619528061,0.440133,42356.0,42355.0,0.34757881]
[1644619528562,0.63889778,42356.0,42355.0,0.34757881]
[1644619529263,0.435133,42356.0,42355.0,0.34757881]
[1644619530064,0.63387131,42356.0,42355.0,0.34757881]
[1644619530263,0.63377131,42356.0,42355.0,0.34757881]
[1644619531662,0.435033,42356.0,42355.0,0.34757881]
[1644619531911,0.435033,42356.0,42355.0,0.34080877]
[1644619532512,0.63374015,42356.0,42355.0,0.34080877]
[1644619532913,0.435033,42356.0,42355.0,0.34080877]
[1644619534615,0.68341292,42356.0,42355.0,0.34080877]
[1644619535013,0.435033,42356.0,42355.0,0.34080877]
[1644619535663,0.68341292,42356.0,42355.0,0.34080877]
[1644619535863,0.435033,42356.0,42355.0,0.34080877]
[1644619536464,0.68341292,42356.0,42355.0,0.34080877]
[1644619536666,0.435033,42356.0,42355.0,0.34080877]
[1644619537467,0.68341292,42356.0,42355.0,0.34080877]
[1644619537666,0.435033,42356.0,42355.0,0.34080877]
[1644619543870,0.435033,42356.0,42355.0,0.33779524]
[1644619544069,0.63365779,42356.0,42355.0,0.33779524]
[1644619544471,0.435033,42356.0,42355.0,0.33779524]
[1644619544670,0.63357737,42356.0,42355.0,0.33779524]
[1644619544872,0.435033,42356.0,42355.0,0.33779524]
[1644619545070,0.435133,42356.0,42355.0,0.33779524]
[1644619546272,0.63358999,42356.0,42355.0,0.33779524]
[1644619546934,0.435133,42356.0,42355.0,0.33779524]
[1644619548337,0.63360166,42356.0,42355.0,0.33779524]
[1644619548835,0.30262466,42356.0,42355.0,0.33779524]
[1644619549035,0.435133,42356.0,42355.0,0.33779524]
[1644619550036,0.68351292,42356.0,42355.0,0.33779524]
[1644619550867,0.74257392,42356.0,42354.0,0.18290253]
[1644619551067,0.69648115,42355.0,42354.0,0.18290253]
[1644619551262,0.69648115,42355.0,42345.0,0.39418599]
[1644619551263,0.69648115,42355.0,42345.0,0.5819503]
[1644619551465,0.19847631,42351.0,42345.0,0.6410123]
[1644619551663,0.330977,42350.0,42345.0,0.45324799]
[1644619551863,0.24847631,42351.0,42345.0,0.26034799]
[1644619552063,0.30753906,42351.0,42345.0,0.20111016]
[1644619552467,0.059063,42350.0,42345.0,0.20111016]
[1644619552666,0.059063,42350.0,42344.0,0.20128599]
[1644619552964,0.059063,42349.0,42344.0,0.20111016]
[1644619553164,0.109063,42349.0,42345.0,0.20111016]
[1644619553565,0.109063,42349.0,42345.0,0.20128599]
[1644619553767,0.099063,42349.0,42345.0,0.20128599]
[1644619554322,0.15812714,42349.0,42345.0,0.20128599]
[1644619554924,0.059063,42348.0,42345.0,0.20128599]
[1644619555124,0.21719114,42349.0,42345.0,0.20128599]
[1644619555125,0.43482831,42353.0,42352.0,0.0829594]
[1644619555322,0.76584851,42353.0,42352.0,0.0829594]
[1644619555522,0.74470702,42353.0,42352.0,0.0829594]
[1644619555922,1.07568402,42353.0,42352.0,0.0829594]
[1644619556924,0.74470702,42353.0,42352.0,0.0829594]
[1644619557125,0.79470702,42353.0,42352.0,0.0829594]
[1644619558174,0.48487151,42353.0,42352.0,0.0829594]
[1644619558975,0.286352,42353.0,42352.0,0.0829594]
[1644619559176,0.617329,42353.0,42352.0,0.0829594]
[1644619559374,0.286352,42353.0,42352.0,0.0829594]
[1644619560477,0.617329,42353.0,42352.0,0.0829594]
[1644619560676,0.286352,42353.0,42352.0,0.0829594]
[1644619561076,0.617329,42353.0,42352.0,0.0829594]
[1644619561478,0.617329,42353.0,42345.0,0.00017583]
[1644619561680,0.617329,42353.0,42344.0,0.49748599]
[1644619561681,0.059065,42350.0,42344.0,0.49748599]
[1644619561910,0.330977,42349.0,42344.0,0.1]
[1644619562209,0.380977,42349.0,42344.0,0.1]
[1644619562409,0.330977,42348.0,42344.0,0.00017583]
[1644619562609,0.330977,42348.0,42343.0,0.20128599]
[1644619563012,0.330977,42348.0,42343.0,0.20111016]
[1644619563211,0.330977,42348.0,42343.0,0.20128599]
[1644619563412,0.390042,42348.0,42343.0,0.20128599]
[1644619563613,0.330977,42346.0,42343.0,0.20128599]
[1644619564012,0.330977,42345.0,42343.0,0.20128599]
[1644619564213,0.05,42346.0,42342.0,0.20128599]
[1644619564413,0.330977,42345.0,42343.0,0.20111016]
[1644619564813,0.330977,42344.0,42343.0,0.26017316]
[1644619565663,0.109062,42345.0,42343.0,0.26017316]
[1644619565664,0.168121,42345.0,42343.0,0.26017316]
[1644619566068,0.330977,42344.0,42343.0,0.26017316]
[1644619567165,0.168121,42345.0,42343.0,0.26017316]
[1644619567366,0.168121,42345.0,42343.0,0.059063]
[1644619568164,0.168121,42345.0,42343.0,0.05923883]
[1644619568465,0.330977,42344.0,42343.0,0.04549865]
[1644619568664,0.330977,42344.0,42343.0,0.00017583]
[1644619568867,0.330977,42343.0,42342.0,0.00017583]
[1644619569066,0.330977,42343.0,42341.0,0.00183927]
[1644619569067,0.380977,42343.0,42341.0,0.00183927]
[1644619569316,0.330977,42342.0,42341.0,0.00183927]
[1644619570117,0.330977,42342.0,42341.0,0.00141916]
[1644619570917,0.61148437,42342.0,42341.0,0.00141916]
[1644619571616,0.67055937,42342.0,42340.0,0.00061916]
[1644619571816,0.330977,42341.0,42340.0,0.00061916]
[1644619572016,0.380977,42341.0,42340.0,0.00061916]
[1644619572317,0.65985419,42341.0,42340.0,0.00061916]
[1644619572517,0.65945934,42341.0,42340.0,0.00061916]
[1644619573570,0.38058215,42341.0,42340.0,0.00061916]
[1644619574871,0.38058215,42341.0,42340.0,0.00068614]
[1644619574872,0.68058215,42341.0,42340.0,0.00068614]
[1644619575271,0.38058215,42341.0,42340.0,0.00068614]
[1644619575469,0.38058215,42341.0,42338.0,0.00043665]
[1644619575673,0.330977,42339.0,42338.0,0.00043665]
[1644619576072,0.380977,42339.0,42337.0,0.0011]
[1644619576272,0.330977,42338.0,42337.0,0.0011]
[1644619578819,0.60992021,42338.0,42337.0,0.0011]
[1644619580420,0.380977,42338.0,42337.0,0.0011]
[1644619582879,0.380977,42338.0,42331.0,0.00024465]
[1644619582880,0.05910011,42335.0,42331.0,0.00024465]
[1644619583077,0.330977,42333.0,42331.0,0.00024465]
[1644619583278,0.480977,42333.0,42322.0,0.0022]
[1644619583481,0.480977,42333.0,42321.0,0.0067]
[1644619583482,0.05,42327.0,42321.0,0.0067]
[1644619583677,0.15,42328.0,42320.0,0.0044]
[1644619583678,0.05,42324.0,42320.0,0.0044]
[1644619583877,0.05,42324.0,42313.0,0.0022]
[1644619583878,0.059123,42317.0,42313.0,0.0022]
[1644619584079,0.39010396,42316.0,42313.0,0.0022]
[1644619584323,0.39010396,42316.0,42305.0,0.0033]
[1644619584324,0.236514,42315.0,42309.0,0.0022]
[1644619584523,0.330977,42314.0,42309.0,0.00055059]
[1644619584722,0.380977,42314.0,42309.0,0.00055059]
[1644619584924,0.059133,42311.0,42302.0,0.00170336]
[1644619585121,0.33107,42311.0,42302.0,0.00170336]
[1644619585522,0.33107,42307.0,42302.0,0.00170336]
[1644619585722,0.38107,42307.0,42302.0,0.00170336]
[1644619585923,0.33107,42305.0,42302.0,0.00170336]
[1644619586126,0.39020278,42303.0,42302.0,0.00170336]
[1644619586321,0.44020278,42303.0,42301.0,0.0122]
[1644619586523,0.62958235,42302.0,42301.0,0.0122]
[1644619587023,0.62958235,42302.0,42301.0,0.01237433]
[1644619587922,0.3,42301.0,42299.0,0.00307433]
[1644619588179,0.740214,42300.0,42297.0,0.00243433]
[1644619588377,0.33107,42298.0,42297.0,0.00133433]
[1644619588578,0.33107,42298.0,42277.0,0.20111016]
[1644619588877,0.33107,42298.0,42274.0,0.20111016]
[1644619588878,0.33107,42296.0,42274.0,0.20111016]
[1644619589076,0.11831586,42294.0,42273.0,0.20111016]
[1644619589275,0.059157,42283.0,42281.0,0.005]
[1644619589476,0.244571,42284.0,42281.0,0.005]
[1644619590478,0.331142,42282.0,42281.0,0.005]
[1644619593936,0.331142,42282.0,42273.0,0.00173727]
[1644619593937,0.64094699,42282.0,42273.0,0.00173727]
[1644619594140,0.64094699,42282.0,42263.0,0.05]
[1644619594141,0.059167,42268.0,42263.0,0.05]
[1644619594340,0.118333,42272.0,42263.0,0.05]
[1644619594341,0.331142,42278.0,42272.0,0.36927064]
[1644619595579,0.059168,42277.0,42272.0,0.36927064]
[1644619595776,0.331142,42274.0,42272.0,0.36927064]
[1644619595975,0.259388,42275.0,42272.0,0.01417464]
[1644619596174,0.244571,42274.0,42272.0,0.01417464]
[1644619596373,0.331142,42273.0,42272.0,0.01417464]
[1644619596778,0.431142,42273.0,42272.0,0.01417464]
[1644619596975,0.331142,42273.0,42272.0,0.01417464]
[1644619597276,0.731142,42273.0,42272.0,0.01417464]
[1644619597473,0.731142,42273.0,42262.0,0.00098168]
[1644619597674,0.244571,42267.0,42262.0,0.00098168]
[1644619597875,0.331142,42265.0,42262.0,0.00196336]
[1644619598075,0.558737,42265.0,42262.0,0.00196336]
[1644619598280,0.558737,42265.0,42260.0,0.00172444]
[1644619598281,0.244571,42263.0,42260.0,0.00172444]
[1644619598474,0.389752,42261.0,42260.0,0.00172444]
[1644619598675,0.439752,42261.0,42258.0,0.0011]
[1644619598877,0.244571,42260.0,42254.0,0.0021214]
[1644619599075,0.3,42257.0,42254.0,0.0021214]
[1644619599356,0.421514,42256.0,42245.0,0.00111528]
[1644619599550,0.331251,42254.0,42245.0,0.00111528]
[1644619599748,0.331251,42254.0,42244.0,0.001777]
[1644619599749,0.381251,42254.0,42244.0,0.001777]
[1644619599948,0.118421,42249.0,42235.0,0.6111]
[1644619600153,0.059216,42244.0,42241.0,0.0103568]
[1644619600348,0.331251,42243.0,42241.0,0.0103568]
[1644619600547,0.331251,42243.0,42241.0,0.0107136]
[1644619600751,0.331251,42243.0,42241.0,0.01]
[1644619600948,0.331251,42243.0,42241.0,0.00801156]
[1644619600949,0.32782819,42243.0,42241.0,0.00801156]
[1644619601747,0.38704319,42243.0,42241.0,0.00801156]
[1644619601950,0.243855,42242.0,42241.0,0.00801156]
[1644619602549,0.331337,42242.0,42241.0,0.00801156]
[1644619603775,0.240333,42242.0,42241.0,0.00801156]
[1644619604474,0.449768,42245.0,42244.0,0.32914007]
[1644619604872,0.499768,42245.0,42244.0,0.32914007]
[1644619605072,0.78321509,42245.0,42244.0,0.32914007]
[1644619605470,0.381337,42245.0,42244.0,0.32914007]
[1644619605672,0.76800366,42245.0,42244.0,0.32914007]
[1644619605870,0.381337,42245.0,42244.0,0.32914007]
[1644619606271,0.331337,42245.0,42244.0,0.32914007]
[1644619606571,0.61517538,42245.0,42244.0,0.32914007]
[1644619606818,0.61517538,42245.0,42244.0,0.32931423]
[1644619606819,0.6157903,42245.0,42244.0,0.32931423]
[1644619607022,0.331337,42245.0,42244.0,0.32931423]
[1644619607218,0.6214404,42245.0,42244.0,0.32914007]
[1644619607418,0.331337,42245.0,42244.0,0.32914007]
[1644619607821,0.331337,42245.0,42244.0,0.32931423]
[1644619608220,0.331337,42245.0,42244.0,0.32914007]
[1644619609419,0.118432,42247.0,42246.0,0.04458225]
[1644619609823,0.168432,42247.0,42246.0,0.04458225]
[1644619610871,0.168432,42247.0,42246.0,0.04475641]
[1644619611068,0.166132,42247.0,42246.0,0.04475641]
[1644619611469,0.16584988,42247.0,42245.0,0.00402024]
[1644619611768,0.50681767,42247.0,42245.0,0.00402024]
[1644619611970,0.22506775,42247.0,42245.0,0.00402024]
[1644619612184,0.11584988,42247.0,42245.0,0.00402024]
[1644619612369,0.177647,42248.0,42245.0,0.00402024]
[1644619614169,0.118421,42247.0,42245.0,0.00402024]